fUSD/lending_fUSD_20250209
["ID","MTS","AMOUNT","RATE_DAILY","PERIOD"]
[352426397,1739095865705,-453.01568501,0.00011099,2]
[352426398,1739095865715,-453.01568501,0.00011099,2]
[352426399,1739095865725,-3825.69898758,0.00011099,2]
[352426400,1739095865735,-3825.6989875,0.00011099,2]
[352426401,1739095865745,-3825.6989875,0.00011099,2]
[352426402,1739095865756,-3825.6989875,0.00011099,2]
[352426403,1739095865766,-3825.6989875,0.00011099,2]
[352426404,1739095865776,-3825.6989875,0.00011099,2]
[352426405,1739095865786,-3825.6989875,0.00011099,2]
[352426406,1739095865796,-3825.6989875,0.00011099,2]
[352426407,1739095865806,-3825.6989875,0.00011099,2]
[352426408,1739095865815,-3825.6989875,0.00011099,2]
[352426409,1739095865825,-697.0,0.00011113,2]
[352426410,1739095865835,-150.0,0.00011123,2]
[352426411,1739095865844,-697.0,0.00011141,2]
[352426412,1739095865854,-404.75224425,0.00011146,2]
[352426413,1739095865864,-150.0,0.0001115,2]
[352426414,1739095865874,-697.0,0.00011168,2]
[352426415,1739095865884,-500.0,0.00011181,2]
[352426416,1739095865894,-1152.27,0.00011182,2]
[352426417,1739095865904,-724.17,0.00011182,2]
[352426418,1739095865914,-1132.72,0.00011182,2]
[352426419,1739095865924,-1357.8,0.00011182,2]
[352426420,1739095865934,-500.0,0.00011182,2]
[352426421,1739095865944,-1150.02,0.00011182,2]
[352426422,1739095865955,-880.85,0.00011182,2]
[352426423,1739095865965,-1015.0,0.00011182,2]
[352426424,1739095865975,-500.0,0.00011182,2]
[352426425,1739095865985,-1257.71,0.00011182,2]
[352426426,1739095865995,-1341.32,0.00011182,2]
[352426427,1739095866006,-698.83,0.00011182,2]
[352426428,1739095866015,-1461.08,0.00011182,2]
[352426429,1739095866025,-1576.02,0.00011182,2]
[352426430,1739095866035,-1475.76,0.00011182,2]
[352426431,1739095866045,-1506.32,0.00011182,2]
[352426432,1739095866055,-1494.26,0.00011182,2]
[352426433,1739095866064,-500.0,0.00011182,2]
[352426434,1739095866074,-1208.06,0.00011182,2]
[352426435,1739095866083,-1283.21,0.00011182,2]
[352426436,1739095866093,-500.0,0.00011182,2]
[352426437,1739095866102,-351.00521561,0.00011182,2]
[352426438,1739095866115,-668.93,0.00011182,2]
[352426439,1739095866125,-532.29,0.00011182,2]
[352426440,1739095866135,-500.0,0.00011182,2]
[352426441,1739095866144,-500.0,0.00011182,2]
[352426442,1739095866154,-631.57,0.00011182,2]
[352426443,1739095866164,-500.0,0.00011182,2]
[352426444,1739095866174,-506.98523305,0.00011182,2]
[352426445,1739095866184,-1328.43,0.00011182,2]
[352426446,1739095866195,-500.0,0.00011183,2]
[352426447,1739095866209,-500.0,0.00011183,2]
[352426448,1739095866219,-500.0,0.00011183,2]
[352426449,1739095866229,-500.0,0.00011183,2]
[352426450,1739095866239,-500.0,0.00011183,2]
[352426451,1739095866249,-500.0,0.00011183,2]
[352426452,1739095866258,-500.0,0.00011183,2]
[352426453,1739095866268,-500.0,0.00011183,2]
[352426454,1739095866279,-500.0,0.00011183,2]
[352426455,1739095866503,-500.0,0.00011183,2]
[352426456,1739095866559,-500.0,0.00011183,2]
[352426457,1739095866569,-322.04,0.00011183,2]
[352426458,1739095866579,-500.0,0.00011183,2]
[352426459,1739095866589,-500.0,0.00011183,2]
[352426460,1739095866599,-599.66,0.00011183,2]
[352426461,1739095866609,-533.15,0.00011183,2]
[352426462,1739095866618,-500.0,0.00011183,2]
[352426463,1739095866628,-500.0,0.00011183,2]
[352426464,1739095866638,-714.67,0.00011183,2]
[352426465,1739095866648,-500.0,0.00011183,2]
[352426466,1739095866658,-510.82,0.00011183,2]
[352426467,1739095866668,-500.0,0.00011183,2]
[352426468,1739095866678,-500.0,0.00011183,2]
[352426469,1739095866687,-575.28,0.00011183,2]
[352426470,1739095866696,-500.0,0.00011183,2]
[352426471,1739095866705,-500.0,0.00011183,2]
[352426472,1739095866715,-500.0,0.00011183,2]
[352426473,1739095866725,-594.56,0.00011183,2]
[352426474,1739095866735,-1213.56,0.00011183,2]
[352426475,1739095866745,-500.0,0.00011183,2]
[352426476,1739095866754,-588.03,0.00011183,2]
[352426477,1739095866764,-733.97644,0.00011183,2]
[352426478,1739095866774,-529.87,0.00011183,2]
[352426479,1739095866783,-957.726417,0.00011183,2]
[352426480,1739095866793,-781.27,0.00011183,2]
[352426481,1739095866803,-970.52,0.00011183,2]
[352426482,1739095866812,-537.11,0.00011183,2]
[352426483,1739095866822,-500.0,0.00011183,2]
[352426484,1739095866832,-2972.23,0.00011183,2]
[352426485,1739095866842,-666.32,0.00011183,2]
[352426486,1739095866851,-1280.02,0.00011183,2]
[352426487,1739095866860,-1201.1,0.00011183,2]
[352426488,1739095866869,-500.0,0.00011183,2]
[352426489,1739095866878,-1268.87,0.00011183,2]
[352426490,1739095866888,-632.14,0.00011183,2]
[352426491,1739095866897,-944.53,0.00011183,2]
[352426492,1739095866906,-702.27,0.00011183,2]
[352426493,1739095866916,-1188.01,0.00011183,2]
[352426494,1739095866926,-500.0,0.00011183,2]
[352426495,1739095866935,-2680.97,0.00011183,2]
[352426496,1739095866946,-801.63,0.00011183,2]
[352426497,1739095866958,-1475.77,0.00011183,2]
[352426498,1739095866967,-500.0,0.00011183,2]
[352426499,1739095866977,-679.18,0.00011183,2]
[352426500,1739095866986,-500.0,0.00011183,2]
[352426501,1739095866997,-500.0,0.00011183,2]
[352426502,1739095867007,-679.7,0.00011183,2]
[352426503,1739095867017,-500.0,0.00011183,2]
[352426504,1739095867027,-770.02,0.00011183,2]
[352426505,1739095867038,-500.0,0.00011183,2]
[352426506,1739095867048,-500.0,0.00011183,2]
[352426507,1739095867057,-500.0,0.00011183,2]
[352426508,1739095867067,-500.0,0.00011184,2]
[352426509,1739095867077,-500.0,0.00011184,2]
[352426510,1739095867087,-500.0,0.00011184,2]
[352426511,1739095867096,-500.0,0.00011184,2]
[352426512,1739095867106,-500.0,0.00011184,2]
[352426513,1739095867116,-500.0,0.00011184,2]
[352426514,1739095867126,-329.62,0.00011184,2]
[352426515,1739095867135,-500.0,0.00011184,2]
[352426516,1739095867145,-1239.95,0.00011184,2]
[352426517,1739095867154,-500.0,0.00011184,2]
[352426518,1739095867164,-500.0,0.00011184,2]
[352426519,1739095867173,-371.4771036,0.00011184,2]
[352426520,1739095867183,-555.71,0.00011184,2]
[352426521,1739095867192,-540.2,0.00011184,2]
[352426522,1739095867202,-500.0,0.00011184,2]
[352426523,1739095867211,-150.38,0.00011184,2]
[352426524,1739095867220,-500.0,0.00011184,2]
[352426525,1739095867230,-500.0,0.00011184,2]
[352426526,1739095867239,-497.33694017,0.00011184,2]
[352426527,1739095867248,-500.0,0.00011184,2]
[352426528,1739095867259,-500.0,0.00011184,2]
[352426529,1739095867268,-500.0,0.00011184,2]
[352426530,1739095867278,-504.39540052,0.00011184,2]
[352426531,1739095867288,-500.0,0.00011184,2]
[352426532,1739095867298,-587.11,0.00011184,2]
[352426533,1739095867308,-500.0,0.00011184,2]
[352426534,1739095867317,-500.0,0.00011184,2]
[352426535,1739095867327,-500.0,0.00011184,2]
[352426536,1739095867336,-500.0,0.00011184,2]
[352426537,1739095867346,-500.0,0.00011184,2]
[352426538,1739095867355,-546.55,0.00011184,2]
[352426539,1739095867365,-500.0,0.00011184,2]
[352426540,1739095867374,-500.0,0.00011184,2]
[352426541,1739095867383,-500.0,0.00011184,2]
[352426542,1739095867393,-500.0,0.00011184,2]
[352426543,1739095867403,-160.459895,0.00011184,2]
[352426544,1739095867412,-500.0,0.00011184,2]
[352426545,1739095867422,-550.19,0.00011184,2]
[352426546,1739095867431,-612.35,0.00011184,2]
[352426547,1739095867441,-830.04,0.00011184,2]
[352426548,1739095867450,-1383.45,0.00011184,2]
[352426549,1739095867460,-1630.8,0.00011184,2]
[352426550,1739095867469,-500.0,0.00011184,2]
[352426551,1739095867479,-1585.45,0.00011184,2]
[352426552,1739095867488,-591.04,0.00011184,2]
[352426553,1739095867497,-2273.72,0.00011184,2]
[352426554,1739095867507,-348.63,0.00011184,2]
[352426555,1739095867517,-819.17,0.00011184,2]
[352426556,1739095867527,-1111.04,0.00011184,2]
[352426557,1739095867536,-1302.26,0.00011184,2]
[352426558,1739095867546,-1487.54,0.00011184,2]
[352426559,1739095867555,-500.0,0.00011184,2]
[352426560,1739095867565,-1111.22,0.00011184,2]
[352426561,1739095867575,-1031.34,0.00011184,2]
[352426562,1739095867585,-500.0,0.00011184,2]
[352426563,1739095867594,-967.2,0.00011184,2]
[352426564,1739095867604,-747.38,0.00011184,2]
[352426565,1739095867613,-500.0,0.00011184,2]
[352426566,1739095867622,-1032.96,0.00011184,2]
[352426567,1739095867632,-829.73,0.00011184,2]
[352426568,1739095867642,-669.95,0.00011184,2]
[352426569,1739095867652,-500.0,0.00011184,2]
[352426570,1739095867662,-344.5,0.00011184,2]
[352426571,1739095867671,-1044.85,0.00011184,2]
[352426572,1739095867681,-1479.18,0.00011184,2]
[352426573,1739095867691,-698.47,0.00011184,2]
[352426574,1739095867701,-1465.35,0.00011184,2]
[352426575,1739095867712,-1918.5,0.00011184,2]
[352426576,1739095867721,-1080.16,0.00011184,2]
[352426577,1739095867731,-1493.17,0.00011184,2]
[352426578,1739095867740,-500.0,0.00011184,2]
[352426579,1739095867751,-500.0,0.00011184,2]
[352426580,1739095867760,-1116.87,0.00011184,2]
[352426581,1739095867770,-1703.91,0.00011184,2]
[352426582,1739095867780,-1227.31,0.00011184,2]
[352426583,1739095867790,-955.79,0.00011184,2]
[352426584,1739095867799,-509.24,0.00011184,2]
[352426585,1739095867809,-1379.38,0.00011184,2]
[352426586,1739095867819,-500.0,0.00011184,2]
[352426587,1739095867828,-3396.14,0.00011184,2]
[352426588,1739095867837,-1580.08,0.00011184,2]
[352426589,1739095867847,-1184.37,0.00011184,2]
[352426590,1739095867856,-1373.36,0.00011184,2]
[352426591,1739095867866,-783.87,0.00011184,2]
[352426592,1739095867875,-1000.0,0.00011184,2]
[352426593,1739095867884,-1456.24,0.00011184,2]
[352426594,1739095867894,-756.71,0.00011184,2]
[352426595,1739095867904,-1314.38,0.00011184,2]
[352426596,1739095867914,-500.0,0.00011184,2]
[352426597,1739095867924,-912.33,0.00011184,2]
[352426598,1739095867934,-743.47,0.00011184,2]
[352426599,1739095867943,-557.2,0.00011184,2]
[352426600,1739095867958,-1107.21,0.00011184,2]
[352426601,1739095867968,-1216.55,0.00011184,2]
[352426602,1739095867982,-1685.79,0.00011184,2]
[352426603,1739095867993,-1209.48,0.00011184,2]
[352426604,1739095868003,-500.0,0.00011184,2]
[352426605,1739095868012,-500.0,0.00011184,2]
[352426606,1739095868022,-574.57,0.00011184,2]
[352426607,1739095868034,-500.0,0.00011184,2]
[352426608,1739095868043,-500.0,0.00011184,2]
[352426609,1739095868053,-1320.75,0.00011184,2]
[352426610,1739095868062,-834.03,0.00011184,2]
[352426611,1739095868071,-500.0,0.00011184,2]
[352426612,1739095868080,-912.85,0.00011184,2]
[352426613,1739095868090,-1117.53,0.00011184,2]
[352426614,1739095868103,-215.26178678,0.00011184,2]
[352426615,1739095868112,-150.0,0.00011188,2]
[352426616,1739095868122,-697.0,0.00011196,2]
[352426617,1739095868132,-150.0,0.00011199,2]
[352426618,1739095868142,-150.0,0.00011214,2]
[352426619,1739095868151,-300.0,0.00011216,2]
[352426620,1739095868160,-278.1,0.00011217,2]
[352426621,1739095868170,-500.0,0.00011217,2]
[352426622,1739095868179,-500.0,0.00011217,2]
[352426623,1739095868190,-1087.04,0.00011217,2]
[352426624,1739095868200,-287.44,0.00011217,2]
[352426625,1739095868209,-500.0,0.00011217,2]
[352426626,1739095868219,-410.85,0.00011217,2]
[352426627,1739095868229,-517.6,0.00011217,2]
[352426628,1739095868239,-500.0,0.00011217,2]
[352426629,1739095868249,-500.0,0.00011217,2]
[352426630,1739095868259,-500.0,0.00011217,2]
[352426631,1739095868268,-500.0,0.00011217,2]
[352426632,1739095868278,-685.98,0.00011217,2]
[352426633,1739095868287,-500.0,0.00011217,2]
[352426634,1739095868297,-500.0,0.00011217,2]
[352426635,1739095868307,-500.0,0.00011217,2]
[352426636,1739095868316,-500.0,0.00011217,2]
[352426637,1739095868326,-443.74624804,0.00011217,2]
[352426638,1739095868341,-500.0,0.00011217,2]
[352426639,1739095868351,-500.0,0.00011217,2]
[352426640,1739095868361,-614.19,0.00011217,2]
[352426641,1739095868371,-500.0,0.00011217,2]
[352426642,1739095868381,-500.0,0.00011217,2]
[352426643,1739095868391,-500.0,0.00011217,2]
[352426644,1739095868401,-500.0,0.00011217,2]
[352426645,1739095868411,-266.51,0.00011217,2]
[352426646,1739095868421,-576.84,0.00011217,2]
[352426647,1739095868431,-500.0,0.00011217,2]
[352426648,1739095868441,-500.0,0.00011217,2]
[352426649,1739095868452,-500.0,0.00011217,2]
[352426650,1739095868462,-500.0,0.00011217,2]
[352426651,1739095868472,-500.0,0.00011217,2]
[352426652,1739095868482,-665.4,0.00011217,2]
[352426653,1739095868491,-500.0,0.00011217,2]
[352426654,1739095868501,-500.0,0.00011217,2]
[352426655,1739095868511,-500.0,0.00011217,2]
[352426656,1739095868520,-500.0,0.00011217,2]
[352426657,1739095868530,-650.78,0.00011217,2]
[352426658,1739095868539,-500.0,0.00011217,2]
[352426659,1739095868550,-692.49,0.00011217,2]
[352426660,1739095868560,-1032.18,0.00011217,2]
[352426661,1739095868570,-500.0,0.00011217,2]
[352426662,1739095868579,-500.0,0.00011217,2]
[352426663,1739095868589,-500.0,0.00011217,2]
[352426664,1739095868598,-500.0,0.00011217,2]
[352426665,1739095868608,-500.0,0.00011217,2]
[352426666,1739095868618,-500.0,0.00011217,2]
[352426667,1739095868627,-500.0,0.00011217,2]
[352426668,1739095868637,-577.91,0.00011217,2]
[352426669,1739095868647,-500.0,0.00011217,2]
[352426670,1739095868657,-500.0,0.00011217,2]
[352426671,1739095868666,-583.79,0.00011217,2]
[352426672,1739095868676,-711.52,0.00011217,2]
[352426673,1739095868686,-829.67,0.00011217,2]
[352426674,1739095868696,-500.0,0.00011217,2]
[352426675,1739095868706,-500.0,0.00011217,2]
[352426676,1739095868716,-500.0,0.00011217,2]
[352426677,1739095868726,-755.01,0.00011217,2]
[352426678,1739095868735,-577.83,0.00011217,2]
[352426679,1739095868746,-759.26,0.00011217,2]
[352426680,1739095868755,-610.35,0.00011222,2]
[352426681,1739095868765,-704.18,0.00011222,2]
[352426682,1739095868775,-500.0,0.00011222,2]
[352426683,1739095868785,-641.82,0.00011222,2]
[352426684,1739095868795,-500.0,0.00011222,2]
[352426685,1739095868804,-756.47,0.00011222,2]
[352426686,1739095868814,-500.0,0.00011222,2]
[352426687,1739095868824,-697.0,0.00011223,2]
[352426688,1739095868833,-113.66244334,0.00011223,2]
[352426689,1739095869151,-100.76473666,0.00011223,2]
[352426690,1739095869163,-214.42718,0.00011223,2]
[352426691,1739095869175,-151.595202,0.00011223,2]
[352426692,1739095869185,-151.595202,0.00011223,2]
[352426693,1739095869196,-151.0,0.00011223,2]
[352426694,1739095869209,-151.0,0.00011223,2]
[352426695,1739095869222,-151.0,0.00011228,2]
[352426696,1739095869234,-1172.19,0.00011232,2]
[352426697,1739095869245,-697.0,0.0001125,2]
[352426698,1739095869256,-150.0,0.00011269,2]
[352426699,1739095869268,-1264.0,0.00011273,2]
[352426700,1739095869280,-2954.0,0.00011273,2]
[352426701,1739095869293,-916.364,0.00011273,2]
[352426702,1739095869305,-783.0,0.00011273,2]
[352426703,1739095869316,-4023.0,0.00011273,2]
[352426704,1739095869328,-539.0,0.00011273,2]
[352426705,1739095869338,-697.0,0.00011278,2]
[352426706,1739095869348,-150.0,0.00011295,2]
[352426707,1739095869359,-697.0,0.00011305,2]
[352426708,1739095869371,-500.0,0.00011318,2]
[352426709,1739095869383,-1152.27,0.00011319,2]
[352426710,1739095869396,-724.17,0.00011319,2]
[352426711,1739095869409,-1132.72,0.00011319,2]
[352426712,1739095869422,-500.0,0.00011319,2]
[352426713,1739095869434,-1150.02,0.00011319,2]
[352426714,1739095869447,-880.85,0.00011319,2]
[352426715,1739095869460,-1015.0,0.00011319,2]
[352426716,1739095869472,-500.0,0.00011319,2]
[352426717,1739095869484,-1257.71,0.00011319,2]
[352426718,1739095869495,-1341.32,0.00011319,2]
[352426719,1739095869507,-698.83,0.00011319,2]
[352426720,1739095869519,-1461.08,0.00011319,2]
[352426721,1739095869531,-1576.02,0.00011319,2]
[352426722,1739095869543,-1475.76,0.00011319,2]
[352426723,1739095869554,-1506.32,0.00011319,2]
[352426724,1739095869565,-1494.26,0.00011319,2]
[352426725,1739095869576,-500.0,0.00011319,2]
[352426726,1739095869587,-1208.06,0.00011319,2]
[352426727,1739095869599,-1283.21,0.00011319,2]
[352426728,1739095869612,-500.0,0.00011319,2]
[352426729,1739095869626,-668.93,0.00011319,2]
[352426730,1739095869638,-532.29,0.00011319,2]
[352426731,1739095869650,-226.35705145,0.00011319,2]
[352426732,1739095869663,-273.64294855,0.00011319,2]
[352426733,1739095869675,-278.23785545,0.00011319,2]
[352426734,1739095869691,-221.76214455,0.00011319,2]
[352426735,1739095869701,-302.31437643,0.00011319,2]
[352426737,1739095920452,-150.0,9.188e-05,2]
[352426738,1739095920479,-150.0,9.21e-05,2]
[352426739,1739095920505,-150.0,9.236e-05,2]
[352426740,1739095920531,-150.0,9.3e-05,2]
[352426741,1739095920556,-150.0,9.349e-05,2]
[352426742,1739095920582,-150.0,9.414e-05,2]
[352426743,1739095920608,-150.0,9.57e-05,2]
[352426744,1739095920633,-150.0,9.892e-05,2]
[352426745,1739095920660,-150.0,9.943e-05,2]
[352426746,1739095927742,186.33,9.833e-05,2]
[352426747,1739095995418,150.0,8.71e-05,2]
[352426748,1739096006426,1334.26,9.622e-05,2]
[352426749,1739096017343,679.90570741,9.434e-05,2]
[352426750,1739096026065,575.85,9.591e-05,2]
[352426751,1739096107795,4383.8249,8.256e-05,2]
[352426752,1739096115455,150.0,9.23e-05,2]
[352426753,1739096115513,150.0,8.575e-05,2]
[352426754,1739096115590,150.0,9.673e-05,2]
[352426755,1739096115635,150.0,9.126e-05,2]
[352426756,1739096124681,14489.82939259,8.973e-05,2]
[352426759,1739096279162,168.4,7.371e-05,2]
[352426800,1739097032195,-506.82,8.219e-05,2]
[352426801,1739097032205,-414.3787,8.256e-05,2]
[352426803,1739097032215,-541.48,8.722e-05,2]
[352426805,1739097032227,-200.0,8.758e-05,2]
[352426807,1739097032236,-669.48,8.768e-05,2]
[352426809,1739097032246,-280.48515367,8.775e-05,2]
[352426810,1739097032255,-160.35,8.775e-05,2]
[352426811,1739097032264,-3498.08,8.802e-05,2]
[352426812,1739097032274,-9478.9457,8.836e-05,2]
[352426813,1739097032283,-1718.77,8.849e-05,2]
[352426814,1739097032292,-2015.05,8.886e-05,2]
[352426815,1739097032302,-1500.0,8.928e-05,2]
[352426816,1739097032311,-280.48515366,8.941e-05,2]
[352426817,1739097032321,-5356.01646896,8.973e-05,2]
[352426818,1739097032333,-318.39508091,8.973e-05,2]
[352426825,1739097032671,-255.77,8.973e-05,2]
[352426827,1739097032683,-1322.22029579,8.973e-05,2]
[352426831,1739097032712,-2191.43756175,8.973e-05,2]
[352426833,1739097032722,-892.46269897,8.973e-05,2]
[352426836,1739097032740,-3910.14720103,8.973e-05,2]
[352426838,1739097032750,-150.0,8.994e-05,2]
[352426840,1739097032759,-1267.18,8.995e-05,2]
[352426842,1739097032769,-2292.13,8.995e-05,2]
[352426844,1739097032778,-175.18,9.041e-05,2]
[352426846,1739097032787,-1000.0,9.049e-05,2]
[352426848,1739097032796,-7364.26106204,9.079e-05,2]
[352426850,1739097032808,-11296.40446536,9.079e-05,2]
[352426853,1739097032821,-5239.3344726,9.079e-05,2]
[352426855,1739097032831,-170.39,9.106e-05,2]
[352426858,1739097032840,-280.48515366,9.106e-05,2]
[352426861,1739097032849,-649.47,9.135e-05,2]
[352426863,1739097032858,-285.46,9.163e-05,2]
[352426865,1739097032867,-1852.42,9.266e-05,2]
[352426867,1739097032877,-849.44,9.297e-05,2]
[352426870,1739097032886,-143.23577756,9.313e-05,2]
[352426873,1739097032898,-321.10000927,9.313e-05,2]
[352426878,1739097032917,-8050.21421317,9.313e-05,2]
[352426880,1739097032927,-150.0,9.464e-05,2]
[352426882,1739097032936,-500.0,9.808e-05,2]
[352426884,1739097032945,-181.0,9.894e-05,2]
[352426886,1739097032954,-21351.34949544,0.0001,2]
[352426889,1739097032976,-891.41080323,0.0001,2]
[352426891,1739097032987,-836.27000006,0.0001,2]
[352426894,1739097032997,-633.85633432,0.0001,2]
[352426896,1739097033008,-782.94,0.0001,2]
[352426898,1739097033018,-720.33,0.0001,2]
[352426900,1739097033029,-576.72142506,0.0001,2]
[352426902,1739097033038,-15.11355534,0.0001,2]
[352426904,1739097033048,-809.96318,0.0001,2]
[352426906,1739097033059,-1798.25391992,0.0001,2]
[352426909,1739097033081,-1013.80572263,0.0001,2]
[352426912,1739097033095,-1305.0,0.0001,2]
[352426915,1739097033106,-488.1012989,0.0001,2]
[352426922,1739097033148,-3197.14999998,0.0001,2]
[352426924,1739097033159,-2508.0,0.0001,2]
[352426927,1739097033178,-2450.000002,0.0001,2]
[352426969,1739097038215,-339.30327672,0.0001,2]
[352426970,1739097038276,-3048.04183831,0.0001,2]
[352426971,1739097038287,-1142.11724043,0.0001,2]
[352426972,1739097038401,-18848.45488221,0.0001,2]
[352427021,1739097040472,-1466.43173063,0.0001,2]
[352427022,1739097040535,-533.52,0.0001,2]
[352427026,1739097040862,-3715.38993374,0.0001,2]
[352427027,1739097040880,-803.358,0.0001,2]
[352427039,1739097043149,-2054.46186016,0.0001,2]
[352427040,1739097043158,-150.0,0.0001009,2]
[352427041,1739097043167,-248.13,0.00010137,2]
[352427044,1739097043177,-370.44,0.00010164,2]
[352427047,1739097043186,-370.96,0.00010165,2]
[352427048,1739097043195,-368.14,0.00010165,2]
[352427049,1739097043204,-500.0,0.00010165,2]
[352427050,1739097043213,-370.74,0.00010166,2]
[352427051,1739097043224,-376.52,0.00010166,2]
[352427052,1739097043241,-376.17,0.00010167,2]
[352427053,1739097043250,-372.2,0.00010168,2]
[352427054,1739097043261,-370.34,0.0001017,2]
[352427055,1739097043271,-374.45,0.00010173,2]
[352427056,1739097043280,-380.99,0.00010179,2]
[352427057,1739097043289,-1000.0,0.0001018,2]
[352427058,1739097043298,-150.0,0.00010182,2]
[352427059,1739097043314,-370.87,0.00010189,2]
[352427060,1739097043323,-150.0,0.00010218,2]
[352427061,1739097043332,-300.0,0.00010218,2]
[352427062,1739097043341,-649.47,0.00010277,2]
[352427063,1739097043350,-150.0,0.00010388,2]
[352427064,1739097043359,-88445.02943984,0.000104,2]
[352427065,1739097043377,-11632.66057044,0.000104,2]
[352427066,1739097043387,-506.82,0.00010432,2]
[352427067,1739097043396,-522.11,0.00010495,2]
[352427068,1739097043408,-1039.19,0.00010495,2]
[352427069,1739097043419,-841.98,0.00010495,2]
[352427070,1739097043428,-814.6,0.00010495,2]
[352427071,1739097043437,-847.89,0.00010495,2]
[352427072,1739097043446,-739.79,0.00010495,2]
[352427073,1739097043456,-500.0,0.00010495,2]
[352427074,1739097043465,-686.65942956,0.00010495,2]
[352427075,1739097043476,-284.28057044,0.00010495,2]
[352427076,1739097043486,-665.6,0.00010495,2]
[352427077,1739097043495,-156.50199422,0.00010495,2]
[352427078,1739097043509,-899.26800578,0.00010495,2]
[352427080,1739097043518,-500.0,0.00010495,2]
[352427082,1739097043527,-912.67,0.00010495,2]
[352427083,1739097043538,-527.64,0.00010495,2]
[352427084,1739097043547,-1158.02,0.00010495,2]
[352427085,1739097043556,-1075.58,0.00010495,2]
[352427086,1739097043565,-500.0,0.00010495,2]
[352427087,1739097043574,-556.34880234,0.00010495,2]
[352427088,1739097043583,-133.62559188,0.00010495,2]
[352427092,1739097043625,-282.725041,0.00010495,2]
[352427115,1739097046328,-593.02499644,0.00010495,2]
[352427116,1739097046339,-89.65437068,0.00010495,2]
[352427117,1739097046348,-500.0,0.00010495,2]
[352427118,1739097046357,-500.0,0.00010495,2]
[352427119,1739097046367,-1100.1,0.00010495,2]
[352427120,1739097046376,-626.82,0.00010495,2]
[352427121,1739097046386,-950.61,0.00010495,2]
[352427122,1739097046395,-500.0,0.00010495,2]
[352427123,1739097046404,-500.0,0.00010495,2]
[352427124,1739097046415,-500.0,0.00010495,2]
[352427125,1739097046425,-500.0,0.00010495,2]
[352427126,1739097046435,-500.0,0.00010495,2]
[352427127,1739097046444,-1255.00478055,0.00010495,2]
[352427128,1739097046466,-98.76521945,0.00010495,2]
[352427129,1739097046475,-519.98,0.00010495,2]
[352427130,1739097046486,-500.0,0.00010495,2]
[352427131,1739097046495,-500.0,0.00010495,2]
[352427132,1739097046505,-500.0,0.00010495,2]
[352427133,1739097046514,-323.16930964,0.00010495,2]
[352427134,1739097046523,-408.08547091,0.00010495,2]
[352427135,1739097046541,-91.91452909,0.00010495,2]
[352427136,1739097046550,-170.68547091,0.00010495,2]
[352427137,1739097046562,-329.31452909,0.00010495,2]
[352427139,1739097046571,-635.21,0.00010495,2]
[352427141,1739097046581,-500.0,0.00010495,2]
[352427143,1739097046591,-500.0,0.00010495,2]
[352427145,1739097046600,-500.0,0.00010496,2]
[352427147,1739097046609,-500.0,0.00010496,2]
[352427149,1739097046618,-500.0,0.00010496,2]
[352427151,1739097046627,-588.35,0.00010496,2]
[352427153,1739097046636,-769.98,0.00010496,2]